bitfinex/quotes_BTCUSD_20241130
["timestamp","ask_amount","ask_price","bid_price","bid_amount"]
[1732946598065,0.18642924,97126.0,97125.0,0.12351442]
[1732946598066,0.06282571,97126.0,97125.0,0.12351442]
[1732946598308,0.18378471,97126.0,97125.0,0.20651442]
[1732946598543,0.16578471,97126.0,97125.0,0.19551442]
[1732946598779,0.15678471,97126.0,97125.0,0.11351442]
[1732946599007,0.15678471,97126.0,97125.0,0.11451442]
[1732946599238,0.20052952,97126.0,97125.0,0.11451442]
[1732946599467,0.22062118,97126.0,97125.0,0.11451442]
[1732946599937,0.001732,97138.0,97125.0,0.11451442]
[1732946599938,0.205868,97150.0,97143.0,0.0465]
[1732946600186,0.205853,97157.0,97146.0,0.01]
[1732946600462,0.207567,97166.0,97146.0,0.1246671]
[1732946600695,0.02282887,97147.0,97146.0,0.1246671]
[1732946601152,0.02382887,97147.0,97146.0,0.12284521]
[1732946601376,0.05771419,97147.0,97146.0,0.12466698]
[1732946601603,0.05771419,97147.0,97146.0,0.12284521]
[1732946603220,0.04361732,97147.0,97146.0,0.12384521]
[1732946603457,0.04261732,97147.0,97146.0,0.12384521]
[1732946603687,0.14855332,97147.0,97146.0,0.11384521]
[1732946603908,0.15555332,97147.0,97146.0,0.11484521]
[1732946604129,0.05261732,97147.0,97146.0,0.12484521]
[1732946612253,0.26095332,97147.0,97146.0,0.012]
[1732946612457,0.26095332,97147.0,97146.0,0.002]
[1732946612678,0.26095332,97147.0,97146.0,0.012]
[1732946613365,0.24695332,97147.0,97146.0,0.011]
[1732946613758,0.25595332,97147.0,97146.0,0.012]
[1732946614116,0.06161732,97147.0,97146.0,0.11384521]
[1732946614349,0.16455332,97147.0,97146.0,0.11384521]
[1732946614555,0.16155332,97147.0,97146.0,0.11284521]
[1732946614975,0.17955332,97147.0,97146.0,0.11484521]
[1732946615397,0.17055332,97147.0,97146.0,0.11384521]
[1732946615815,0.17955332,97147.0,97146.0,0.11484521]
[1732946624317,0.17955332,97147.0,97146.0,0.012]
[1732946632975,0.05361732,97147.0,97146.0,0.12484521]
[1732946633655,0.05361732,97147.0,97146.0,0.12666709]
[1732946633885,0.05361732,97147.0,97146.0,0.22778221]
[1732946634113,0.12833908,97156.0,97155.0,0.02]
[1732946634229,0.19250862,97165.0,97155.0,0.12284521]
[1732946634432,0.03454117,97156.0,97155.0,0.02]
[1732946634658,0.19250862,97165.0,97164.0,0.01]
[1732946634860,0.05754117,97165.0,97164.0,0.01]
[1732946635076,0.023,97165.0,97164.0,0.01]
[1732946635277,0.023,97165.0,97164.0,0.0101788]
[1732946635485,0.0017316,97167.0,97165.0,0.02]
[1732946636303,0.0017316,97167.0,97165.0,0.12284521]
[1732946637165,0.002732,97166.0,97165.0,0.13184521]
[1732946637377,0.003732,97166.0,97165.0,0.13584521]
[1732946638967,0.003732,97166.0,97165.0,0.12584521]
[1732946639648,0.003732,97166.0,97165.0,0.13584521]
[1732946640054,0.129648,97166.0,97165.0,0.12584521]
[1732946640201,0.209648,97166.0,97165.0,0.12584521]
[1732946640409,0.209648,97166.0,97165.0,0.013]
[1732946640620,0.209648,97166.0,97165.0,0.023]
[1732946641745,0.209648,97166.0,97165.0,0.013]
[1732946642664,0.255248,97166.0,97165.0,0.013]
[1732946643093,0.023,97165.0,97164.0,0.0001788]
[1732946643294,0.23230479,97165.0,97164.0,0.0001788]
[1732946644361,0.27790479,97165.0,97164.0,0.0001788]
[1732946645008,0.27890479,97165.0,97164.0,0.0091788]
[1732946645473,0.27990479,97165.0,97164.0,0.0181788]
[1732946651341,0.28163619,97165.0,97164.0,0.0181788]
[1732946658475,0.27963619,97165.0,97164.0,0.0001788]
[1732946658706,0.28163619,97165.0,97164.0,0.0161788]
[1732946664979,0.3844814,97165.0,97164.0,8e-07]
[1732946671029,0.4850236,97165.0,97164.0,8e-07]
[1732946671466,0.3844814,97165.0,97164.0,8e-07]
[1732946674063,0.39411993,97165.0,97164.0,8e-07]
[1732946675993,0.3844814,97165.0,97164.0,8e-07]
[1732946687037,0.3844814,97165.0,97164.0,0.0017316]
[1732946689967,0.38191373,97165.0,97164.0,0.0017316]
[1732946702572,0.41293469,97165.0,97164.0,0.0017316]
[1732946703262,0.66692023,97165.0,97164.0,6e-07]
[1732946703533,0.66576615,97165.0,97164.0,6e-07]
[1732946704184,0.56193469,97165.0,97164.0,6e-07]
[1732946704609,0.56093469,97165.0,97164.0,6e-07]
[1732946705099,0.56193469,97165.0,97164.0,0.003]
[1732946705325,0.56193469,97165.0,97147.0,0.0008655]
[1732946705326,0.125935,97148.0,97147.0,0.0008655]
[1732946705543,0.15185717,97148.0,97147.0,0.00146271]
[1732946706059,0.42875717,97148.0,97147.0,0.00146271]
[1732946707225,0.42975717,97148.0,97147.0,0.00746271]
[1732946707654,0.42975717,97148.0,97147.0,0.00946271]
[1732946707655,0.43075717,97148.0,97147.0,0.00946271]
[1732946707888,0.42975717,97148.0,97147.0,0.00346271]
[1732946708130,0.43075717,97148.0,97147.0,0.00746271]
[1732946708345,0.43175717,97148.0,97147.0,0.00946271]
[1732946709381,0.43075717,97148.0,97147.0,0.00346271]
[1732946709586,0.43075717,97148.0,97147.0,0.00846271]
[1732946709791,0.53460238,97148.0,97147.0,0.00846271]
[1732946710618,0.53460238,97148.0,97147.0,7.1e-07]
[1732946711247,0.53460238,97148.0,97147.0,5.1e-07]
[1732946711977,0.63743384,97148.0,97147.0,5.1e-07]
[1732946714071,0.53460238,97148.0,97147.0,5.1e-07]
[1732946715887,0.56557933,97148.0,97147.0,5.1e-07]
[1732946716733,0.56457933,97148.0,97147.0,5.1e-07]
[1732946717372,0.173,97147.0,97111.0,0.0002]
[1732946717591,0.201857,97127.0,97111.0,0.0002]
[1732946717803,0.22850592,97127.0,97111.0,0.0002]
[1732946719067,0.22950592,97127.0,97126.0,0.0018657]
[1732946719711,0.23050592,97127.0,97126.0,0.0018657]
[1732946719921,0.38135113,97127.0,97126.0,0.0018657]
[1732946720130,0.38035113,97127.0,97126.0,0.0018657]
[1732946720339,0.38135113,97127.0,97126.0,0.0018657]
[1732946721178,0.38035113,97127.0,97126.0,0.0008657]
[1732946721383,0.38135113,97127.0,97126.0,0.0018657]
[1732946721610,0.38035113,97127.0,97126.0,0.0008657]
[1732946722051,0.38135113,97127.0,97126.0,0.0018657]
[1732946722271,0.38235113,97127.0,97126.0,0.0018657]
[1732946722744,0.38135113,97127.0,97126.0,0.0018657]
[1732946723198,0.38235113,97127.0,97126.0,0.0018657]
[1732946724718,0.102959,97126.0,97125.0,7e-07]
[1732946724927,0.48073106,97126.0,97125.0,7e-07]
[1732946726006,0.48173106,97126.0,97125.0,0.0010007]
[1732946726222,0.48273106,97126.0,97125.0,0.0010007]
[1732946727109,0.57698617,97126.0,97125.0,0.0010007]
[1732946727756,0.48273106,97126.0,97125.0,0.0010007]
[1732946728438,0.53193106,97126.0,97125.0,7e-07]
[1732946728866,0.173,97125.0,97110.0,4e-07]
[1732946729129,0.30387206,97126.0,97110.0,4e-07]
[1732946729130,0.401174,97111.0,97110.0,4e-07]
[1732946729313,0.53099151,97111.0,97110.0,4e-07]
[1732946730115,0.102981,97105.0,97104.0,6e-07]
[1732946730308,0.25579851,97105.0,97104.0,6e-07]
[1732946730540,0.125982,97104.0,97103.0,8e-07]
[1732946730763,0.25579951,97104.0,97103.0,8e-07]
[1732946730888,0.125985,97101.0,97100.0,0.0017158]
[1732946731098,0.25580251,97101.0,97100.0,0.0017158]
[1732946731311,0.30957956,97101.0,97100.0,0.0017158]
[1732946731746,0.102995,97092.0,97091.0,8e-07]
[1732946732008,0.3324397,97092.0,97091.0,8e-07]
[1732946733058,0.103008,97079.0,97078.0,4e-07]
[1732946733275,0.15338676,97079.0,97078.0,4e-07]
[1732946734452,0.15344624,97079.0,97078.0,4e-07]
[1732946734682,0.15444624,97079.0,97078.0,4e-07]
[1732946735633,0.15544624,97079.0,97078.0,4e-07]
[1732946741812,0.13244624,97079.0,97078.0,4e-07]
[1732946743211,0.15544624,97079.0,97078.0,4e-07]
[1732946750323,0.15544624,97079.0,97074.0,0.08274741]
[1732946750537,0.103013,97075.0,97074.0,0.08274741]
[1732946750740,0.15172714,97075.0,97074.0,0.13144741]
[1732946750954,0.12872714,97075.0,97074.0,0.23429262]
[1732946751209,0.12872714,97075.0,97074.0,0.25429262]
[1732946751412,0.02571414,97075.0,97074.0,0.25429262]
[1732946751618,0.12872714,97075.0,97074.0,0.25429262]
[1732946752846,0.12972714,97075.0,97074.0,0.26129262]
[1732946753059,0.12972714,97075.0,97074.0,0.25429262]
[1732946753271,0.13072714,97075.0,97074.0,0.26129262]
[1732946753473,0.13172714,97075.0,97074.0,0.26829262]
[1732946753896,0.13172714,97075.0,97074.0,0.26129262]
[1732946753897,0.13072714,97075.0,97074.0,0.26129262]
[1732946754097,0.13172714,97075.0,97074.0,0.27029262]
[1732946755251,0.15472714,97075.0,97074.0,0.15744741]
[1732946755444,0.15472714,97075.0,97074.0,0.0747]
[1732946756118,0.15472714,97075.0,97074.0,0.026]
[1732946756553,0.15472714,97075.0,97074.0,0.016]
[1732946756767,0.15472714,97075.0,97074.0,0.026]
[1732946758998,0.15472714,97075.0,97074.0,0.0268658]
[1732946766121,0.15472714,97075.0,97074.0,0.13971101]
[1732946766955,0.15472714,97075.0,97074.0,0.27171101]
[1732946768745,0.02871414,97075.0,97074.0,0.27171101]
[1732946769624,0.13172714,97075.0,97074.0,0.27171101]
[1732946770602,0.02871414,97075.0,97074.0,0.27171101]
[1732946771049,0.03044574,97075.0,97074.0,0.37472501]
[1732946771287,0.03044574,97075.0,97074.0,0.27171101]
[1732946783155,0.03044574,97075.0,97074.0,0.37472501]
[1732946783395,0.03044574,97075.0,97074.0,0.39472501]
[1732946783607,0.03044574,97075.0,97074.0,0.42671873]
[1732946784350,0.02844574,97075.0,97074.0,0.56971873]
[1732946784601,0.02744574,97075.0,97074.0,0.56071873]
[1732946784844,0.03644574,97075.0,97074.0,0.56171873]
[1732946785087,0.02744574,97075.0,97074.0,0.41071873]
[1732946785311,0.03144574,97075.0,97074.0,0.41071873]
[1732946785800,0.03944574,97075.0,97074.0,0.41171873]
[1732946786445,0.03544574,97075.0,97074.0,0.41171873]
[1732946786727,0.03544574,97075.0,97074.0,0.29870473]
[1732946786938,0.03944574,97075.0,97074.0,0.24771101]
[1732946787157,0.03944574,97075.0,97074.0,0.26771101]
[1732946787411,0.03944574,97075.0,97074.0,0.24771101]
[1732946787658,0.03944574,97075.0,97074.0,0.25771101]
[1732946787871,0.14245874,97075.0,97074.0,0.12571101]
[1732946788085,0.03944574,97075.0,97074.0,0.12571101]
[1732946788309,0.14245874,97075.0,97074.0,0.12571101]
[1732946788813,0.13445874,97075.0,97074.0,0.12471101]
[1732946789056,0.14345874,97075.0,97074.0,0.12571101]
[1732946789542,0.13445874,97075.0,97074.0,0.12471101]
[1732946789758,0.13445874,97075.0,97074.0,0.12371101]
[1732946789759,0.13045874,97075.0,97074.0,0.12371101]
[1732946790044,0.13945874,97075.0,97074.0,0.12471101]
[1732946790260,0.13945874,97075.0,97074.0,0.12371101]
[1732946790261,0.1047446,97075.0,97074.0,0.12371101]
[1732946790707,0.1137446,97075.0,97074.0,0.12571101]
[1732946790926,0.1227446,97075.0,97074.0,0.12571101]
[1732946791924,0.1457446,97075.0,97074.0,0.12571101]
[1732946792395,0.0427316,97075.0,97074.0,0.12571101]
[1732946792615,0.1457446,97075.0,97074.0,0.12571101]
[1732946793108,0.0427316,97075.0,97074.0,0.12571101]
[1732946793324,0.0147316,97075.0,97074.0,0.25603425]
[1732946793558,0.0147316,97075.0,97074.0,0.25421101]
[1732946794045,0.0147316,97075.0,97074.0,0.17451101]
[1732946794963,0.0155974,97075.0,97074.0,0.12571101]
[1732946796328,0.0155974,97075.0,97074.0,0.1275341]
[1732946800904,0.0155974,97075.0,97074.0,0.12571101]
[1732946801663,0.0155974,97075.0,97074.0,0.12753406]
[1732946802080,0.0155974,97075.0,97074.0,0.12571101]
[1732946802336,0.1186104,97075.0,97074.0,0.12571101]
[1732946802660,0.0155974,97075.0,97074.0,0.12571101]
[1732946803294,0.0155974,97075.0,97074.0,0.12753417]
[1732946804363,0.0155974,97075.0,97074.0,0.12571101]
[1732946804570,0.0155974,97075.0,97074.0,0.12753417]
[1732946805313,0.1416104,97075.0,97074.0,0.12571101]
[1732946808615,0.0385974,97075.0,97074.0,0.12571101]
[1732946809085,0.1416104,97075.0,97074.0,0.12571101]
[1732946809523,0.0385974,97075.0,97074.0,0.12571101]
[1732946809752,0.1416104,97075.0,97074.0,0.12571101]
[1732946809983,0.13904072,97075.0,97074.0,0.12571101]
[1732946810199,0.03602772,97075.0,97074.0,0.12571101]
[1732946814583,0.13904072,97075.0,97074.0,0.12571101]
[1732946815269,0.03602772,97075.0,97074.0,0.12571101]
[1732946815500,0.13904072,97075.0,97074.0,0.12571101]
[1732946816163,0.03602772,97075.0,97074.0,0.12571101]
[1732946817833,0.03602772,97075.0,97074.0,0.12753417]
[1732946818056,0.03602772,97075.0,97074.0,0.12571101]
[1732946818275,0.01302772,97075.0,97074.0,0.12571101]
[1732946818511,0.01302772,97075.0,97074.0,0.12753413]
[1732946820570,0.01302772,97075.0,97074.0,0.18513413]
[1732946820874,0.01302772,97075.0,97074.0,0.21715184]
[1732946821102,0.01302772,97075.0,97074.0,0.21532872]
[1732946821334,0.01302772,97075.0,97074.0,0.22715169]
[1732946821558,0.01302772,97075.0,97074.0,0.47834272]
[1732946821785,0.01302772,97075.0,97074.0,0.37532872]
[1732946822265,0.00402772,97075.0,97074.0,0.37432872]
[1732946822522,0.0008658,97075.0,97074.0,0.37332872]
[1732946822770,0.0088658,97075.0,97074.0,0.47734272]
[1732946823020,0.0128658,97075.0,97074.0,0.47734272]
[1732946823239,0.0048658,97075.0,97074.0,0.47634272]
[1732946823469,0.0128658,97075.0,97074.0,0.47734272]
[1732946824610,0.0128658,97075.0,97074.0,0.37432872]
[1732946824872,0.0128658,97075.0,97074.0,0.47734272]
[1732946833592,0.0128658,97075.0,97074.0,0.37432872]
[1732946833832,0.0128658,97075.0,97074.0,0.32672872]
[1732946835902,0.0128658,97075.0,97074.0,0.14672872]
[1732946836194,0.0880658,97075.0,97074.0,0.16855174]
[1732946836417,0.0880658,97075.0,97074.0,0.16672872]
[1732946836649,0.0880658,97075.0,97074.0,0.13471101]
[1732946837339,0.0880658,97075.0,97074.0,0.28471101]
[1732946838206,0.0880658,97075.0,97074.0,0.26471101]
[1732946838432,0.0880658,97075.0,97074.0,0.28471101]
[1732946840785,0.0128658,97075.0,97074.0,0.29471101]
[1732946845529,0.0128658,97075.0,97074.0,0.47677474]
[1732946846336,0.0128658,97075.0,97074.0,0.55937474]
[1732946846759,0.00302616,97075.0,97074.0,0.55937474]
[1732946846979,0.0827,97109.0,97108.0,0.02]
[1732946847199,0.0827,97109.0,97108.0,0.12284521]
[1732946847412,0.00059632,97109.0,97108.0,0.12284521]
[1732946848386,0.00059632,97109.0,97108.0,0.27466758]
[1732946848597,0.00059632,97109.0,97108.0,0.27284521]
[1732946849047,0.01859632,97109.0,97108.0,0.27484521]
[1732946849478,0.00959632,97109.0,97108.0,0.27384521]
[1732946849722,0.00059632,97109.0,97108.0,0.27284521]
[1732946849934,0.01859632,97109.0,97108.0,0.27484521]
[1732946850377,0.01859632,97109.0,97108.0,0.27384521]
[1732946850378,0.00959632,97109.0,97108.0,0.27384521]
[1732946851016,0.00959632,97109.0,97108.0,0.27284521]
[1732946851229,0.00059632,97109.0,97108.0,0.27284521]
[1732946851551,0.00859632,97109.0,97108.0,0.27384521]
[1732946852161,0.01459632,97109.0,97108.0,0.27384521]
[1732946852595,0.01459632,97109.0,97108.0,0.28470013]
[1732946853066,0.01546212,97109.0,97108.0,0.28470013]
[1732946855488,0.01546212,97109.0,97108.0,0.12384521]
[1732946855489,0.24773912,97109.0,97108.0,0.12384521]
[1732946856886,0.27073912,97109.0,97108.0,0.12384521]
[1732946860186,0.29156964,97109.0,97108.0,0.11384521]
[1732946861100,0.28356964,97109.0,97108.0,0.11284521]
[1732946861613,0.28656964,97109.0,97108.0,0.11384521]
[1732946861841,0.28756964,97109.0,97108.0,0.12284521]
[1732946862041,0.28756964,97109.0,97108.0,0.11384521]
[1732946862506,0.29656964,97109.0,97108.0,0.11484521]
[1732946863906,0.29656964,97109.0,97108.0,0.12484521]
[1732946864352,0.27573912,97109.0,97108.0,0.12484521]
[1732946864775,0.22913912,97109.0,97108.0,0.12484521]
[1732946864944,0.12616212,97109.0,97108.0,0.12484521]
[1732946865787,0.02046212,97109.0,97108.0,0.12484521]
[1732946865998,0.02046212,97109.0,97108.0,0.12666765]
[1732946866853,0.01146212,97109.0,97108.0,0.12384521]
[1732946867088,0.26943912,97109.0,97108.0,0.12384521]
[1732946867301,0.27843912,97109.0,97108.0,0.12484521]
[1732946868286,0.25943912,97109.0,97108.0,0.12284521]
[1732946868496,0.26843912,97109.0,97108.0,0.12384521]
[1732946868729,0.26843912,97109.0,97108.0,0.12284521]
[1732946868730,0.14246212,97109.0,97108.0,0.12284521]
[1732946869204,0.14246212,97109.0,97108.0,0.12384521]
[1732946869414,0.10236212,97109.0,97108.0,0.12384521]
[1732946870004,0.21433912,97109.0,97108.0,0.12484521]
[1732946871007,0.11136212,97109.0,97108.0,0.12484521]
[1732946871232,0.02846212,97109.0,97108.0,0.12484521]
[1732946871470,0.04872281,97109.0,97108.0,0.12484521]
[1732946874300,0.02846212,97109.0,97108.0,0.12484521]
[1732946874515,0.02846212,97109.0,97108.0,0.12666773]
[1732946874705,0.02846212,97109.0,97108.0,0.12666774]
[1732946874930,0.02846212,97109.0,97108.0,0.12484521]
[1732946875153,0.02846212,97109.0,97108.0,0.12666775]
[1732946879215,0.04901126,97109.0,97108.0,0.12666775]
[1732946881998,0.12501126,97109.0,97108.0,0.12484521]
[1732946884069,0.10446212,97109.0,97108.0,0.12484521]
[1732946894859,0.10446212,97109.0,97108.0,0.12456766]
[1732946897862,0.10446212,97109.0,97108.0,0.11456766]
[1732946897863,0.23043912,97109.0,97108.0,0.11456766]
[1732946898079,0.23043912,97109.0,97108.0,0.12456766]
[1732946898361,0.23043912,97109.0,97108.0,0.11456766]
[1732946898609,0.23043912,97109.0,97108.0,0.12456766]
[1732946899123,0.23043912,97109.0,97108.0,0.11456766]
[1732946900029,0.23043912,97109.0,97108.0,0.12456766]
[1732946901623,0.23043912,97109.0,97108.0,0.11456766]
[1732946902776,0.28023912,97109.0,97108.0,0.12456766]
[1732946903210,0.28023912,97109.0,97108.0,0.002]
[1732946903820,0.27123912,97109.0,97108.0,0.011]
[1732946904077,0.27123912,97109.0,97108.0,0.001]
[1732946904250,0.29887071,97109.0,97108.0,0.003]
[1732946904699,0.29887071,97109.0,97108.0,0.011]
[1732946904902,0.29887071,97109.0,97108.0,0.012]
[1732946904903,0.28087071,97109.0,97108.0,0.012]
[1732946905108,0.28287071,97109.0,97108.0,0.018]
[1732946905507,0.28187071,97109.0,97108.0,0.012]
[1732946905738,0.28287071,97109.0,97108.0,0.018]
[1732946909771,0.30359004,97109.0,97108.0,0.018]
[1732946911491,0.28287071,97109.0,97108.0,0.008]
[1732946911716,0.28287071,97109.0,97108.0,0.0097316]
[1732946921180,0.30316894,97109.0,97108.0,0.0097316]
[1732946924474,0.28287071,97109.0,97108.0,0.0097316]
[1732946929409,0.30350573,97109.0,97108.0,0.0097316]
[1732946930078,0.30173507,97109.0,97108.0,0.0097316]
[1732946930489,0.28110005,97109.0,97108.0,0.0097316]
[1732946930697,0.28010005,97109.0,97108.0,0.0077316]
[1732946931130,0.27910005,97109.0,97108.0,0.0017316]
[1732946931350,0.28010005,97109.0,97108.0,0.0067316]
[1732946932016,0.28110005,97109.0,97108.0,0.0087316]
[1732946934854,0.28196585,97109.0,97108.0,0.0087316]
[1732946935824,0.28196585,97109.0,97108.0,0.0097316]
[1732946942181,0.28187745,97109.0,97108.0,0.0097316]
[1732946943484,0.30225638,97109.0,97108.0,0.0097316]
[1732946949134,0.28187745,97109.0,97108.0,0.0097316]
[1732946952201,0.254978,97108.0,97107.0,0.0223166]
[1732946952415,0.38477284,97108.0,97107.0,0.00627654]
[1732946952647,0.38477284,97108.0,97107.0,5.4e-07]
[1732946954139,0.38577284,97108.0,97107.0,5.4e-07]
[1732946954355,0.2336481,97108.0,97092.0,7.4e-07]
[1732946954643,0.254994,97093.0,97092.0,7.4e-07]
[1732946954870,0.23400595,97093.0,97092.0,7.4e-07]
[1732946955080,0.33699995,97093.0,97092.0,7.4e-07]
[1732946955894,0.33799995,97093.0,97092.0,7.4e-07]
[1732946956080,0.33899995,97093.0,97092.0,7.4e-07]
[1732946957273,0.36199995,97093.0,97092.0,7.4e-07]
[1732946958376,0.35999995,97093.0,97092.0,7.4e-07]
[1732946958635,0.36099995,97093.0,97092.0,7.4e-07]
[1732946963392,0.25815474,97093.0,97092.0,7.4e-07]
[1732946963604,0.36099995,97093.0,97092.0,7.4e-07]
[1732946965562,0.3815557,97093.0,97092.0,7.4e-07]
[1732946969113,0.3824216,97093.0,97092.0,7.4e-07]
[1732946969329,0.36186585,97093.0,97092.0,7.4e-07]
[1732946975023,0.38249909,97093.0,97092.0,7.4e-07]
[1732946975431,0.33489909,97093.0,97092.0,7.4e-07]
[1732946975638,0.23205388,97093.0,97092.0,7.4e-07]
[1732946979525,0.21142064,97093.0,97092.0,7.4e-07]
[1732946981038,0.21142064,97093.0,97063.0,0.01]
[1732946981039,0.103016,97072.0,97063.0,0.01]
[1732946981252,0.20393194,97072.0,97051.0,0.0555]
[1732946981479,0.20393194,97072.0,97055.0,0.01085605]
[1732946981688,0.20393194,97072.0,97053.0,0.01]
[1732946981903,0.20393194,97072.0,97054.0,0.01]
[1732946982323,0.20493194,97072.0,97054.0,0.01]
[1732946982556,0.20593194,97072.0,97071.0,0.00079632]
[1732946983263,0.20493194,97072.0,97071.0,0.00079632]
[1732946983484,0.103027,97061.0,97060.0,1e-08]
[1732946983696,0.103027,97061.0,97060.0,0.00017904]
[1732946983697,0.12946579,97061.0,97060.0,0.00017904]
[1732946983916,0.12946579,97061.0,97060.0,0.04547904]
[1732946984138,0.12946579,97061.0,97060.0,2e-08]
[1732946984321,0.103034,97055.0,97049.0,0.0776308]
[1732946984528,0.103037,97053.0,97049.0,0.18053549]
[1732946984965,0.01065013,97061.0,97049.0,0.18053549]
[1732946985170,0.103037,97052.0,97049.0,0.18053549]
[1732946985378,0.00965013,97051.0,97049.0,0.18053549]
[1732946985586,0.103037,97052.0,97049.0,0.18053549]
[1732946985822,0.00964917,97051.0,97049.0,0.18053549]
[1732946986032,0.20606,97059.0,97049.0,0.18053549]
[1732946986033,0.103037,97052.0,97049.0,0.18053549]
[1732946986248,0.00964917,97051.0,97049.0,0.18053549]
[1732946986435,0.103038,97052.0,97049.0,0.18053549]
[1732946986687,0.00964825,97051.0,97049.0,0.18053549]
[1732946986897,0.02100636,97050.0,97049.0,0.18053549]
[1732946987080,0.04795777,97050.0,97049.0,0.18053549]
[1732946987339,0.15031484,97050.0,97049.0,0.07769028]
[1732946987992,0.15131484,97050.0,97049.0,0.07769028]
[1732946988409,0.15031484,97050.0,97049.0,0.07769028]
[1732946988613,0.15131484,97050.0,97049.0,0.07769028]
[1732946988905,0.15131484,97050.0,97049.0,5.948e-05]
[1732946989085,0.25435584,97050.0,97031.0,0.0002]
[1732946989294,0.02300636,97050.0,97045.0,0.00017901]
[1732946989515,0.02300636,97050.0,97045.0,0.10302422]
[1732946989724,0.103043,97046.0,97045.0,0.00017901]
[1732946989962,0.13026085,97046.0,97045.0,0.00017901]
[1732946990403,0.02721785,97046.0,97045.0,0.00017901]
[1732946990853,0.13026085,97046.0,97045.0,0.00017901]
[1732946991294,0.13126085,97046.0,97045.0,0.00017901]
[1732946991951,0.13226085,97046.0,97045.0,0.00017901]
[1732946992167,0.13326085,97046.0,97045.0,0.00017901]
[1732946992583,0.13226085,97046.0,97045.0,0.00017901]
[1732946993052,0.13426085,97046.0,97045.0,0.00017901]
[1732946993506,0.13226085,97046.0,97045.0,0.00017901]
[1732946993761,0.0495,97055.0,97045.0,0.00017901]
[1732946993762,0.01607366,97081.0,97047.0,0.206085]
[1732946993980,0.01607366,97081.0,97049.0,0.10284521]
[1732946994213,0.02033512,97051.0,97050.0,0.03388755]
[1732946994461,0.02033512,97051.0,97050.0,0.13673276]
[1732946994923,0.206005,97085.0,97050.0,0.13673276]
[1732946994924,0.0008659,97093.0,97068.0,0.01]
[1732946995144,0.0008659,97093.0,97085.0,0.10284521]
[1732946995366,0.0008659,97093.0,97086.0,0.00182274]
[1732946995600,0.0008659,97093.0,97087.0,0.10284521]
[1732946995843,0.0008659,97093.0,97088.0,0.00182274]
[1732946996095,0.0008659,97093.0,97089.0,0.10284521]
[1732946996314,0.0008659,97093.0,97090.0,0.00182275]
[1732946996533,0.00092553,97093.0,97074.0,0.253013]
[1732946996778,0.02084644,97080.0,97074.0,0.253013]
[1732946997020,0.02084644,97080.0,97075.0,0.0009115]
[1732946997240,0.02084644,97080.0,97074.0,0.15]
[1732946998176,0.02284644,97080.0,97075.0,0.0009118]
[1732946998398,0.02284644,97080.0,97074.0,0.15]
[1732946999318,0.02584644,97080.0,97075.0,0.00091187]
[1732946999586,0.03184644,97080.0,97075.0,0.00091187]
[1732947000099,0.02584644,97080.0,97075.0,0.00091187]
[1732947000341,0.03384644,97080.0,97074.0,0.00191206]
[1732947000625,0.02884644,97080.0,97074.0,0.00191206]
[1732947000845,0.02484644,97080.0,97074.0,0.00091206]
[1732947001518,0.02484644,97080.0,97075.0,0.001]
[1732947001747,0.02484644,97080.0,97063.0,0.15]
[1732947001748,0.02584644,97080.0,97063.0,0.15]
[1732947001967,0.02584644,97080.0,97055.0,0.15]
[1732947002211,0.016,97080.0,97075.0,0.001]
[1732947002695,0.00697671,97080.0,97058.0,0.15]
[1732947002887,0.02056054,97076.0,97058.0,0.15]
[1732947003108,0.02056054,97076.0,97055.0,0.15]
[1732947003374,0.02056054,97076.0,97061.0,0.15]
[1732947003621,0.02056054,97076.0,97061.0,0.253027]
[1732947003834,0.02056054,97076.0,97062.0,0.00091221]
[1732947004091,0.001,97080.0,97062.0,0.00091221]
[1732947004381,0.102997,97090.0,97062.0,0.00091203]
[1732947004627,0.001,97076.0,97074.0,0.001732]
[1732947004851,0.001,97076.0,97075.0,0.00091209]
[1732947005080,0.004,97076.0,97075.0,0.00091209]
[1732947005296,0.008,97076.0,97075.0,0.00091209]
[1732947005517,0.004,97076.0,97075.0,0.00091209]
[1732947005641,0.02174593,97080.0,97075.0,0.00091209]
[1732947006079,0.008,97076.0,97075.0,0.00091209]
[1732947006556,0.02174593,97080.0,97075.0,0.00091215]
[1732947006772,0.02174593,97080.0,97074.0,0.001732]
[1732947006773,0.03074593,97080.0,97076.0,0.00091211]
[1732947006986,0.03074593,97080.0,97074.0,0.001732]
[1732947007878,0.103013,97075.0,97074.0,0.001732]
[1732947008305,0.03074593,97080.0,97074.0,0.10457721]
[1732947008563,0.03074593,97080.0,97075.0,0.10375687]
[1732947008810,0.009,97076.0,97075.0,0.27675687]
[1732947009017,0.000866,97080.0,97075.0,0.27675687]
[1732947009018,0.000866,97080.0,97076.0,0.103011]
[1732947009239,0.000866,97080.0,97077.0,0.27675654]
[1732947010152,0.000866,97080.0,97077.0,0.27584521]
[1732947010363,0.009866,97080.0,97077.0,0.27584521]
[1732947011249,0.018866,97080.0,97077.0,0.27584521]
[1732947011479,0.018866,97080.0,97078.0,0.00091161]
[1732947011687,0.009866,97080.0,97079.0,0.25284521]
[1732947011896,0.018866,97080.0,97079.0,0.25284521]
[1732947012356,0.009866,97080.0,97079.0,0.25284521]
[1732947012779,0.018866,97080.0,97079.0,0.25284521]
[1732947013439,0.009866,97080.0,97079.0,0.25284521]
[1732947013668,0.018866,97080.0,97079.0,0.25284521]
[1732947015367,0.018866,97080.0,97079.0,0.35585321]
[1732947020981,0.018866,97080.0,97079.0,0.25284521]
[1732947023185,0.023826,97080.0,97079.0,0.25284521]
[1732947025263,0.023826,97080.0,97079.0,0.37885321]
[1732947025481,0.02058795,97111.0,97080.0,0.173]
[1732947025701,0.0496,97124.0,97092.0,0.37884021]
[1732947025903,0.0496,97124.0,97092.0,0.3077559]
[1732947026099,0.00059643,97109.0,97108.0,0.15]
[1732947026401,0.00059643,97109.0,97108.0,0.25375555]
[1732947026610,0.00059643,97109.0,97108.0,0.25284521]
[1732947027472,0.00759643,97109.0,97108.0,0.25384521]
[1732947027701,0.00662486,97109.0,97108.0,0.25284521]
[1732947027992,0.00662486,97109.0,97108.0,0.25384521]
[1732947027993,0.01362486,97109.0,97108.0,0.25384521]
[1732947028198,0.01362486,97109.0,97108.0,0.28577332]
[1732947028745,0.02062486,97109.0,97108.0,0.28677332]
[1732947029183,0.007,97109.0,97108.0,0.38875132]
[1732947029379,0.007,97109.0,97108.0,0.28577332]
[1732947029580,0.013,97109.0,97108.0,0.38975132]
[1732947030197,0.006,97109.0,97108.0,0.38875132]
[1732947031431,0.013,97109.0,97108.0,0.38975132]
[1732947034117,0.013,97109.0,97108.0,0.28677332]
[1732947035259,0.013,97109.0,97108.0,0.38975132]
[1732947037943,0.013,97109.0,97108.0,0.28677332]
[1732947038786,0.013,97109.0,97108.0,0.38975132]